fUST/lending_fUST_20250731
["ID","MTS","AMOUNT","RATE_DAILY","PERIOD"]
[376411720,1753969865083,-1500.0,0.00020273,7]
[376411721,1753969865093,-1064.481526,0.00020273,7]
[376411724,1753969865102,-460.0,0.00020273,2]
[376411726,1753969865112,-460.0,0.00020273,2]
[376411728,1753969865122,-467.99340113,0.00020273,2]
[376411730,1753969865131,-151.65631,0.00020273,2]
[376411732,1753969865141,-151.65631,0.00020273,2]
[376411734,1753969865150,-512.32522662,0.00020273,2]
[376411735,1753969865159,-460.0,0.00020273,2]
[376411737,1753969865169,-460.0,0.00020273,2]
[376411740,1753969865181,-337.69893593,0.00020273,2]
[376411742,1753969865190,-460.0,0.00020273,2]
[376411744,1753969865199,-460.0,0.00020273,2]
[376411746,1753969865209,-463.29875478,0.00020273,2]
[376411748,1753969865219,-460.0,0.00020273,2]
[376411750,1753969865228,-460.0,0.00020273,2]
[376411752,1753969865237,-317.321756,0.00020273,2]
[376411754,1753969865247,-474.36807099,0.00020273,2]
[376411756,1753969865256,-317.321756,0.00020273,2]
[376411758,1753969865266,-460.0,0.00020273,2]
[376411760,1753969865275,-460.0,0.00020273,2]
[376411762,1753969865284,-258.00359311,0.00020273,2]
[376411764,1753969865294,-1201.739316,0.00020273,2]
[376411766,1753969865303,-769.66,0.00020273,2]
[376411768,1753969865313,-460.0,0.00020273,2]
[376411770,1753969865325,-1201.739316,0.00020273,2]
[376411772,1753969865334,-515.51,0.00020273,2]
[376411774,1753969865344,-465.19100007,0.00020273,2]
[376411776,1753969865354,-460.0,0.00020273,2]
[376411778,1753969865363,-460.0,0.00020273,2]
[376411780,1753969865373,-559.99,0.00020273,2]
[376411782,1753969865382,-486.16897047,0.00020273,2]
[376411784,1753969865391,-460.0,0.00020273,2]
[376411786,1753969865400,-460.0,0.00020273,2]
[376411788,1753969865412,-460.0,0.00020273,2]
[376411790,1753969865421,-460.0,0.00020273,2]
[376411792,1753969865431,-460.0,0.00020273,2]
[376411794,1753969865440,-750.12,0.00020273,2]
[376411796,1753969865449,-460.0,0.00020273,2]
[376411798,1753969865458,-460.0,0.00020273,2]
[376411800,1753969865467,-460.0,0.00020273,2]
[376411802,1753969865477,-229.56564678,0.00020273,2]
[376411804,1753969865491,-460.0,0.00020273,2]
[376411806,1753969865501,-460.0,0.00020273,2]
[376411808,1753969865511,-471.74,0.00020273,2]
[376411810,1753969865521,-460.0,0.00020273,2]
[376411812,1753969865531,-374.01859077,0.00020273,2]
[376411814,1753969865540,-460.0,0.00020273,2]
[376411816,1753969865550,-460.0,0.00020273,2]
[376411818,1753969865559,-460.0,0.00020273,2]
[376411820,1753969865571,-460.0,0.00020273,2]
[376411822,1753969865581,-460.0,0.00020273,2]
[376411824,1753969865590,-502.78854129,0.00020273,2]
[376411826,1753969865600,-460.0,0.00020273,2]
[376411828,1753969865609,-562.13,0.00020273,2]
[376411830,1753969865619,-460.0,0.00020273,2]
[376411832,1753969865628,-460.0,0.00020273,2]
[376411834,1753969865638,-460.0,0.00020273,2]
[376411836,1753969865647,-460.0,0.00020273,2]
[376411838,1753969865657,-460.0,0.00020273,2]
[376411840,1753969865667,-460.0,0.00020273,2]
[376411843,1753969865676,-151.0,0.00020273,2]
[376411845,1753969865686,-460.0,0.00020273,2]
[376411846,1753969865695,-460.0,0.00020273,2]
[376411848,1753969865705,-460.0,0.00020273,2]
[376411851,1753969865715,-467.46,0.00020273,2]
[376411853,1753969865724,-460.0,0.00020273,2]
[376411854,1753969865733,-460.0,0.00020273,2]
[376411856,1753969865743,-468.03393599,0.00020273,2]
[376411859,1753969865753,-460.0,0.00020273,2]
[376411860,1753969865762,-565.66641089,0.00020273,2]
[376411863,1753969865772,-460.0,0.00020273,2]
[376411865,1753969865784,-517.53302091,0.00020273,2]
[376411867,1753969865794,-460.0,0.00020273,2]
[376411869,1753969865803,-460.0,0.00020273,2]
[376411871,1753969865812,-460.0,0.00020273,2]
[376411873,1753969865824,-460.0,0.00020273,2]
[376411875,1753969865833,-460.0,0.00020273,2]
[376411877,1753969865843,-703.0,0.00020273,2]
[376411879,1753969865852,-460.0,0.00020273,2]
[376411881,1753969865862,-460.0,0.00020273,2]
[376411883,1753969865871,-293.67093492,0.00020273,2]
[376411885,1753969865880,-460.0,0.00020273,2]
[376411887,1753969865890,-1860.96,0.00020273,2]
[376411889,1753969865900,-460.0,0.00020273,2]
[376411891,1753969865910,-460.0,0.00020273,2]
[376411893,1753969865919,-2252.6,0.00020273,2]
[376411895,1753969865929,-460.0,0.00020273,2]
[376411897,1753969865938,-460.0,0.00020273,2]
[376411899,1753969865948,-460.0,0.00020273,2]
[376411901,1753969865958,-460.0,0.00020273,2]
[376411903,1753969865968,-460.0,0.00020273,2]
[376411905,1753969865977,-460.0,0.00020273,2]
[376411907,1753969865986,-460.0,0.00020273,2]
[376411909,1753969865995,-460.0,0.00020273,2]
[376411911,1753969866005,-460.0,0.00020273,2]
[376411913,1753969866014,-573.18,0.00020273,2]
[376411915,1753969866023,-460.0,0.00020273,2]
[376411917,1753969866033,-460.0,0.00020273,2]
[376411919,1753969866042,-460.0,0.00020273,2]
[376411921,1753969866051,-460.0,0.00020273,2]
[376411923,1753969866061,-462.75176611,0.00020273,2]
[376411925,1753969866073,-560.1,0.00020273,2]
[376411927,1753969866083,-261.760103,0.00020273,2]
[376411929,1753969866093,-460.0,0.00020273,2]
[376411931,1753969866102,-729.28,0.00020273,2]
[376411933,1753969866112,-460.0,0.00020273,2]
[376411935,1753969866121,-2235.17,0.00020273,2]
[376411937,1753969866131,-462.52235884,0.00020273,2]
[376411939,1753969866140,-261.760103,0.00020273,2]
[376411941,1753969866149,-460.0,0.00020273,2]
[376411943,1753969866158,-460.0,0.00020273,2]
[376411945,1753969866167,-226.880338,0.00020273,2]
[376411947,1753969866177,-460.0,0.00020273,2]
[376411949,1753969866186,-460.0,0.00020273,2]
[376411951,1753969866195,-226.880338,0.00020273,2]
[376411953,1753969866206,-460.0,0.00020273,2]
[376411955,1753969866215,-460.0,0.00020273,2]
[376411957,1753969866225,-460.0,0.00020273,2]
[376411959,1753969866234,-460.0,0.00020273,2]
[376411961,1753969866244,-460.0,0.00020273,2]
[376411963,1753969866253,-460.0,0.00020273,2]
[376411965,1753969866263,-460.0,0.00020273,2]
[376411967,1753969866272,-460.0,0.00020273,2]
[376411969,1753969866281,-460.0,0.00020273,2]
[376411971,1753969866291,-1658.01,0.00020273,2]
[376411973,1753969866300,-228.21420616,0.00020273,2]
[376411975,1753969866309,-491.72634832,0.00020273,2]
[376411977,1753969866321,-460.0,0.00020273,2]
[376411979,1753969866330,-460.0,0.00020273,2]
[376411981,1753969866339,-460.0,0.00020273,2]
[376411983,1753969866348,-460.0,0.00020273,2]
[376411985,1753969866357,-460.0,0.00020273,2]
[376411986,1753969866367,-520.89,0.00020273,2]
[376411988,1753969866376,-460.0,0.00020273,2]
[376411991,1753969866385,-460.0,0.00020273,2]
[376412000,1753969866482,-1314.43,0.00020273,2]
[376412001,1753969866495,-460.0,0.00020273,2]
[376412002,1753969866506,-460.0,0.00020273,2]
[376412003,1753969866515,-460.0,0.00020273,2]
[376412004,1753969866526,-460.0,0.00020273,2]
[376412005,1753969866536,-267.230596,0.00020273,2]
[376412006,1753969866546,-460.0,0.00020273,2]
[376412007,1753969866555,-57.06038988,0.00020273,2]
[376412021,1753969866751,-460.0,0.00019178,2]
[376412023,1753969866760,-1193.44,0.00019178,2]
[376412025,1753969866771,-1193.44,0.00019178,2]
[376412028,1753969866781,-460.0,0.00019178,2]
[376412030,1753969866790,-1193.44,0.00019178,2]
[376412032,1753969866800,-1193.44,0.00019178,2]
[376412034,1753969866809,-546.71,0.00020273,2]
[376412036,1753969866822,-4442.7,0.00020273,2]
[376412038,1753969866831,-267.230596,0.00020273,2]
[376412040,1753969866840,-460.0,0.00020273,2]
[376412042,1753969866849,-460.0,0.00020273,2]
[376412044,1753969866859,-411.4857667,0.00020273,2]
[376412046,1753969866867,-460.0,0.00020273,2]
[376412048,1753969866876,-506.83,0.00020273,2]
[376412050,1753969866886,-460.0,0.00020273,2]
[376412052,1753969866895,-734.47,0.00020273,2]
[376412054,1753969866904,-460.0,0.00020273,2]
[376412055,1753969866914,-460.0,0.00020273,2]
[376412058,1753969866923,-575.86,0.00020273,2]
[376412060,1753969866933,-592.96,0.00020273,2]
[376412062,1753969866942,-460.0,0.00020273,2]
[376412064,1753969866952,-460.0,0.00020273,2]
[376412065,1753969866961,-460.0,0.00020273,2]
[376412067,1753969866971,-460.0,0.00020273,2]
[376412069,1753969866980,-469.12314799,0.00020273,2]
[376412072,1753969866999,-460.0,0.00020273,2]
[376412074,1753969867011,-460.0,0.00020273,2]
[376412076,1753969867021,-460.0,0.00020273,2]
[376412079,1753969867030,-736.43,0.00020273,2]
[376412081,1753969867040,-460.0,0.00020273,2]
[376412083,1753969867049,-460.0,0.00020273,2]
[376412085,1753969867059,-460.0,0.00020273,2]
[376412087,1753969867072,-460.0,0.00020273,2]
[376412089,1753969867082,-151.0,0.00020273,2]
[376412091,1753969867093,-460.0,0.00020273,2]
[376412093,1753969867104,-460.0,0.00020273,2]
[376412095,1753969867114,-460.0,0.00020273,2]
[376412097,1753969867126,-460.0,0.00020273,2]
[376412099,1753969867137,-1211.44272819,0.00020273,2]
[376412102,1753969867155,-1531.15727181,0.00020273,2]
[376412104,1753969867166,-460.0,0.00020273,2]
[376412106,1753969867175,-460.0,0.00020273,2]
[376412108,1753969867186,-460.0,0.00020273,2]
[376412110,1753969867196,-460.0,0.00020273,2]
[376412113,1753969867207,-558.1458422,0.00020273,2]
[376412114,1753969867216,-460.0,0.00020273,2]
[376412116,1753969867226,-2230.35078545,0.00020273,2]
[376412119,1753969867237,-460.0,0.00020273,2]
[376412121,1753969867247,-460.0,0.00020273,2]
[376412123,1753969867256,-230.55152669,0.00020273,2]
[376412125,1753969867266,-214.99831783,0.00020273,7]
[376412127,1753969867276,-577.49,0.00020273,2]
[376412129,1753969867285,-467.33189132,0.00020273,2]
[376412131,1753969867295,-460.0,0.00020273,2]
[376412133,1753969867304,-460.0,0.00020273,2]
[376412135,1753969867314,-3132.05,0.00020273,2]
[376412137,1753969867326,-1043.01,0.00020273,2]
[376412139,1753969867335,-643.84,0.00020273,2]
[376412141,1753969867345,-463.39728923,0.00020273,2]
[376412143,1753969867355,-984.00237581,0.00020273,2]
[376412145,1753969867367,-1575.71762419,0.00020273,2]
[376412147,1753969867377,-460.0,0.00020273,2]
[376412149,1753969867386,-460.0,0.00020273,2]
[376412151,1753969867396,-33.61839572,0.00020273,2]
[376412581,1753969902607,14207.43934414,0.0001877,2]
[376412582,1753969902632,30000.0,0.0001877,2]
[376412583,1753969902655,30000.0,0.0001877,2]
[376412584,1753969902679,30000.0,0.0001877,2]
[376412585,1753969902702,30000.0,0.0001877,2]
[376412586,1753969902725,30000.0,0.0001877,2]
[376412587,1753969902749,30000.0,0.0001877,2]
[376412588,1753969902771,30000.0,0.0001877,2]
[376412589,1753969902795,30000.0,0.0001877,2]
[376412590,1753969902818,30000.0,0.0001877,2]
[376412591,1753969902843,30000.0,0.0001877,2]
[376412592,1753969902866,30000.0,0.0001877,2]
[376412593,1753969902889,25792.56065586,0.0001877,2]
[376412594,1753969920314,4207.43934414,0.00018772,2]
[376412595,1753969920336,792.56065586,0.00018772,2]
[376412596,1753969928350,5000.0,0.00018772,2]
[376412597,1753969936715,5000.0,0.00018772,2]
[376412598,1753969945932,716.30248904,0.00018772,2]
[376412599,1753969956658,5000.0,0.00018772,2]
[376412600,1753969965763,5000.0,0.00018772,2]
[376412601,1753969972401,347.585868,0.00013699,2]
[376412602,1753969975071,5000.0,0.00018772,2]
[376412604,1753969983132,1242.0259553,0.00018772,2]
[376412605,1753969991372,1901.5250318,0.00018772,2]
[376412606,1753969991587,3098.4749682,0.00018772,2]
[376412607,1753970008044,5000.0,0.00018772,2]
[376412608,1753970024456,5000.0,0.00018772,2]
[376412609,1753970041704,5000.0,0.00018772,2]
[376412611,1753970057117,1161.38679206,0.00018772,2]
[376412612,1753970065312,609.24167888,0.00018603,2]
[376412613,1753970065699,290.214622,0.00018603,2]
[376412614,1753970067555,9840.68193886,0.0001877,2]
[376412615,1753970067581,30000.0,0.0001877,2]
[376412616,1753970067605,30000.0,0.0001877,2]
[376412617,1753970067628,30000.0,0.0001877,2]
[376412618,1753970067651,30000.0,0.0001877,2]
[376412619,1753970067675,30000.0,0.0001877,2]
[376412620,1753970067699,30000.0,0.0001877,2]
[376412621,1753970067722,30000.0,0.0001877,2]
[376412622,1753970067744,30000.0,0.0001877,2]
[376412623,1753970067769,30000.0,0.0001877,2]
[376412624,1753970067793,30000.0,0.0001877,2]
[376412625,1753970067815,30000.0,0.0001877,2]
[376412626,1753970067838,30000.0,0.0001877,2]
[376412627,1753970067860,159.31806114,0.0001877,2]
[376412628,1753970076108,43832.0,0.00026597,120]
[376412629,1753970089000,5000.0,0.00018772,2]
[376412630,1753970091089,440.560754,0.0001835,2]
[376412631,1753970097376,621.10574217,0.00018772,2]
[376412632,1753970106621,5000.0,0.00018772,2]
[376412633,1753970122796,5000.0,0.00018772,2]
[376412634,1753970125133,579.79151013,0.00018772,2]
[376412635,1753970138730,5000.0,0.00018772,2]
[376412636,1753970145764,243.47,0.00018772,2]
[376412637,1753970151401,1000.0,0.00026027,120]
[376412638,1753970156010,5000.0,0.00018772,2]
[376412639,1753970172004,2955.75393256,0.00018772,2]
[376412640,1753970172029,2044.24606744,0.00018772,2]
[376412641,1753970188502,5000.0,0.00018772,2]
[376412642,1753970211730,5000.0,0.00018772,2]
[376412643,1753970216062,17955.75393256,0.00018259,2]
[376412644,1753970216086,6944.24606744,0.00018259,2]
[376412645,1753970227831,5000.0,0.00018772,2]
[376412646,1753970228045,10000.0,0.00018177,2]
[376412647,1753970240909,1000.0,0.00026027,120]
[376412648,1753970244559,5000.0,0.00018772,2]
[376412649,1753970260544,3055.75393256,0.00018772,2]
[376412650,1753970260568,1944.24606744,0.00018772,2]
[376412651,1753970271833,1000.0,0.00026027,120]
[376412652,1753970276817,5000.0,0.00018772,2]
[376412653,1753970289250,1000.0,0.00026027,120]
[376412654,1753970296379,5000.0,0.0001901,6]
[376412655,1753970306049,1000.0,0.00026027,120]
[376412656,1753970315385,5000.0,0.0001901,6]
[376412657,1753970322335,1000.0,0.00026027,120]
[376412658,1753970332723,5000.0,0.0001901,6]
[376412661,1753970348803,5000.0,0.0001901,6]
[376412664,1753970366056,5000.0,0.00018772,2]
[376412665,1753970367355,249.45915853,0.00018333,2]
[376412669,1753970383258,5000.0,0.00018772,2]
[376412674,1753970399481,5000.0,0.00018772,2]
[376412676,1753970402886,1000.0,0.00026027,120]
[376412681,1753970413567,1000.0,0.00026027,120]
[376412682,1753970416958,5000.0,0.0001901,6]
[376412683,1753970422789,1000.0,0.00026027,120]
[376412684,1753970430590,1000.0,0.00026027,120]
[376412685,1753970432873,5000.0,0.0001901,6]
[376412686,1753970449462,5000.0,0.0001901,6]
[376412687,1753970450073,1525.955396,0.000187,2]
[376412688,1753970464838,5000.0,0.00018772,2]
[376412689,1753970469831,1000.0,0.00026027,120]
[376412690,1753970480930,1280.33937803,0.00018772,2]
[376412691,1753970480955,3719.66062197,0.00018772,2]
[376412692,1753970482145,1000.0,0.00026027,120]
[376412694,1753970490776,1000.0,0.00026027,120]
[376412696,1753970497464,5000.0,0.00018772,2]
[376412698,1753970500512,1000.0,0.00026027,120]
[376412699,1753970508464,1000.0,0.00026027,120]
[376412700,1753970513577,5000.0,0.00018772,2]
[376412701,1753970516162,1000.0,0.00026027,120]
[376412703,1753970530141,5000.0,0.0001901,6]
[376412704,1753970546400,5000.0,0.0001901,6]
[376412705,1753970562750,5000.0,0.0001901,6]
[376412706,1753970578197,5000.0,0.00018772,2]
[376412707,1753970583107,958.0,0.00026027,120]
[376412708,1753970594395,5000.0,0.00018772,2]
[376412709,1753970610224,5000.0,0.00018772,2]
[376412710,1753970626523,1280.33937803,0.00018772,2]
[376412711,1753970626567,3719.66062197,0.00018772,2]
[376412713,1753970644239,5000.0,0.00018772,2]
[376412714,1753970660949,5000.0,0.00018772,2]
[376412715,1753970677669,5000.0,0.00018772,2]
[376412716,1753970694586,5000.0,0.00018772,2]
[376412717,1753970716615,5000.0,0.00018772,2]
[376412719,1753970736763,1280.33937803,0.00018772,2]
[376412720,1753970736787,3719.66062197,0.00018772,2]
[376412722,1753970756859,1067.37315916,0.00018772,2]
[376412723,1753970765417,386.52767342,0.00018772,2]
[376412876,1753971032904,-161.43190931,0.00018799,2]
[376412878,1753971032914,-1227.22186057,0.00018873,2]
[376412880,1753971032923,-236.59483883,0.00018886,2]
[376412882,1753971032933,-158.78,0.00018898,2]
[376412884,1753971032943,-300.0,0.00018898,2]
[376412886,1753971032953,-300.0,0.00018898,2]
[376412888,1753971032962,-1200.0,0.00018899,2]
[376412890,1753971032972,-204.0,0.00018899,2]
[376412892,1753971032981,-1200.0,0.00018899,2]
[376412894,1753971032991,-10255.0,0.000189,2]
[376412896,1753971033001,-1650.84196832,0.000189,2]
[376412898,1753971033010,-447.90181083,0.000189,2]
[376412901,1753971033026,-1934.5226049,0.000189,2]
[376412904,1753971033049,-321.06130044,0.000189,2]
[376412906,1753971033061,-1130.93883905,0.000189,2]
[376413433,1753971038451,-23330.31324312,0.000189,2]
[376413435,1753971038461,-236.59483883,0.00018973,2]
[376413437,1753971038471,-325.0,0.0001903,2]
[376413439,1753971038480,-325.0,0.0001903,2]
[376413441,1753971038489,-325.0,0.0001903,2]
[376413443,1753971038499,-325.0,0.0001903,2]
[376413445,1753971038509,-325.0,0.0001903,2]
[376413447,1753971038518,-325.0,0.0001903,2]
[376413449,1753971038530,-325.0,0.0001903,2]
[376413451,1753971038539,-325.0,0.0001903,2]
[376413454,1753971038548,-707.24623746,0.00019056,2]
[376413456,1753971038558,-151.0,0.00019067,2]
[376413458,1753971038567,-151.0,0.00019067,2]
[376413460,1753971038576,-151.0,0.00019067,2]
[376413462,1753971038586,-151.0,0.00019067,2]
[376413463,1753971038595,-151.0,0.00019067,2]
[376413464,1753971038604,-151.0,0.00019067,2]
[376413465,1753971038614,-151.0,0.00019067,2]
[376413466,1753971038623,-151.0,0.00019067,2]
[376413467,1753971038633,-151.0,0.00019067,2]
[376413468,1753971038642,-151.0,0.00019067,2]
[376413469,1753971038651,-151.0,0.00019067,2]
[376413470,1753971038661,-151.0,0.00019067,2]
[376413471,1753971038670,-151.0,0.00019067,2]
[376413472,1753971038679,-151.0,0.00019067,2]
[376413473,1753971038688,-151.0,0.00019067,2]
[376413474,1753971038697,-151.0,0.00019067,2]
[376413475,1753971038706,-151.0,0.00019067,2]
[376413476,1753971038716,-151.0,0.00019067,2]
[376413477,1753971038725,-151.0,0.00019067,2]
[376413478,1753971038734,-151.0,0.00019067,2]
[376413479,1753971038744,-8482.16752815,0.00019067,2]
[376413480,1753971038755,-10090.72961334,0.00019067,2]
[376413484,1753971038796,-325.0,0.0001903,2]
[376413486,1753971038806,-1798.83212,0.00019067,2]
[376413667,1753971040099,-325.0,0.0001903,2]
[376413669,1753971040109,-325.0,0.0001903,2]
[376413671,1753971040119,-4628.27073851,0.00019067,2]
[376413674,1753971040129,-151.0,0.00019067,2]
[376413676,1753971040140,-151.0,0.00019067,2]
[376413678,1753971040150,-24457.02829192,0.00019067,2]
[376413679,1753971040159,-151.0,0.00019067,2]
[376413682,1753971040168,-151.0,0.00019067,2]
[376413684,1753971040177,-151.0,0.00019067,2]
[376413686,1753971040187,-151.0,0.00019067,2]
[376413688,1753971040196,-151.0,0.00019067,2]
[376413690,1753971040206,-151.0,0.00019067,2]
[376413692,1753971040215,-151.0,0.00019067,2]
[376413694,1753971040224,-151.0,0.00019067,2]
[376413696,1753971040233,-151.0,0.00019067,2]
[376413697,1753971040243,-151.0,0.00019067,2]
[376413700,1753971040252,-151.0,0.00019067,2]
[376413701,1753971040261,-151.0,0.00019067,2]
[376413704,1753971040271,-151.0,0.00019067,2]
[376413705,1753971040282,-151.0,0.00019067,2]
[376413708,1753971040291,-151.0,0.00019067,2]
[376413709,1753971040301,-151.0,0.00019067,2]
[376413712,1753971040310,-153.87855946,0.00019067,2]
[376413714,1753971040320,-811.48,0.00019068,3]
[376413715,1753971040329,-340.18055062,0.00019073,2]
[376413718,1753971040340,-500.0,0.00019073,2]
[376413719,1753971040349,-323.40389411,0.00019073,2]
[376413722,1753971040359,-500.0,0.00019073,2]
[376413724,1753971040369,-4791.29980592,0.00019073,2]
[376413726,1753971040379,-1646.17089043,0.00019073,2]
[376413728,1753971040388,-500.0,0.00019077,2]
[376413730,1753971040398,-500.0,0.00019077,2]
[376413732,1753971040408,-156.3750634,0.00019077,2]
[376413734,1753971040417,-500.0,0.00019077,2]
[376413736,1753971040427,-500.0,0.00019077,2]
[376413738,1753971040437,-237.44673032,0.00019077,2]
[376413740,1753971040447,-500.0,0.00019077,2]
[376413742,1753971040456,-500.0,0.00019077,2]
[376413744,1753971040466,-592.96078761,0.00019077,2]
[376413746,1753971040475,-397.097307,0.00019077,2]
[376413748,1753971040485,-500.0,0.00019077,2]
[376413750,1753971040495,-500.0,0.00019077,2]
[376413752,1753971040505,-500.0,0.00019077,2]
[376413754,1753971040517,-500.0,0.00019077,2]
[376413756,1753971040528,-500.0,0.00019077,2]
[376413758,1753971040538,-500.0,0.00019077,2]
[376413760,1753971040547,-10605.8447446,0.00019078,2]
[376413763,1753971040560,-38646.596739,0.00019078,2]
[376413765,1753971040572,-8620.37954411,0.00019078,2]
[376414016,1753971042944,-462.75695184,0.00019078,2]
[376414023,1753971043002,-431.15,0.00019078,2]
[376414340,1753971045922,-316.85729207,0.0001903,2]
[376414342,1753971045932,-325.0,0.0001903,2]
[376414344,1753971045941,-325.0,0.0001903,2]
[376414346,1753971045950,-151.0,0.00019067,2]
[376414348,1753971045959,-151.0,0.00019067,2]
[376414349,1753971045969,-7308.24492498,0.00019078,2]
[376414352,1753971045980,-436.68438848,0.00019078,2]
[376414463,1753971047045,-9464.96438002,0.00019078,2]
[376416095,1753971131039,440.560754,0.00018074,2]
[376416096,1753971171103,500.0,0.00026,120]
[376416097,1753971194438,373.85275,0.00013699,2]
[376416099,1753971278664,24012.02504145,0.00018057,2]
[376416100,1753971278687,887.97495855,0.00018057,2]
[376416101,1753971349353,1009.268677,0.000187,2]
[376416102,1753971483898,10000.0,0.00017999,2]
[376416103,1753971490774,-236.59483884,0.00018878,2]
[376416104,1753971490795,-1360.00609229,0.000189,2]
[376416105,1753971490817,-389.94196305,0.000189,2]
[376416106,1753971490838,-1316.93671236,0.00018978,2]
[376416107,1753971490858,-2696.52039346,0.00018997,2]
[376416109,1753971605617,261.34531638,0.00018772,2]
[376416116,1753972070966,17841.41104807,0.00018,2]
[376416117,1753972070989,1605.20723926,0.00018,2]
[376416463,1753972238559,-1073.81912799,0.00018877,2]
[376416465,1753972238569,-1200.0,0.00018898,2]
[376416467,1753972238579,-300.0,0.00018899,2]
[376416469,1753972238588,-1200.0,0.00018899,2]
[376416471,1753972238597,-1349.53234617,0.000189,2]
[376416473,1753972238607,-974.10662943,0.000189,2]
[376416475,1753972238616,-4177.29804059,0.000189,2]
[376416477,1753972238626,-6397.73284372,0.000189,2]
[376416479,1753972238635,-4269.54798953,0.000189,2]
[376416481,1753972238646,-1349.53234616,0.00018908,2]
[376416483,1753972238663,-1349.53234616,0.00018915,2]
[376416485,1753972238672,-1349.53234616,0.00018923,2]
[376416486,1753972238682,-1349.53234616,0.0001893,2]
[376416488,1753972238692,-500.0,0.00018973,2]
[376416490,1753972238701,-500.0,0.00018973,2]
[376416492,1753972238711,-500.0,0.00018973,2]
[376416494,1753972238721,-500.0,0.00018973,2]
[376416496,1753972238733,-500.0,0.00018973,2]
[376416498,1753972238743,-570.98049074,0.00018973,2]
[376416500,1753972238753,-598.6521222,0.00018973,2]
[376416501,1753972238763,-304.20277847,0.00018973,2]
[376416502,1753972238774,-473.35066136,0.00018973,2]
[376416503,1753972238785,-500.0,0.00018973,2]
[376416505,1753972238795,-505.72343388,0.00018973,2]
[376416507,1753972238805,-480.57643053,0.00018973,2]
[376416509,1753972238814,-500.0,0.00018973,2]
[376416511,1753972238823,-752.085,0.00018977,2]
[376416513,1753972238833,-52643.99331318,0.00018978,2]
[376416515,1753972238842,-597.54,0.00018988,3]
[376416517,1753972238851,-199.18,0.00018989,3]
[376416519,1753972238861,-597.58,0.00018989,3]
[376416521,1753972238870,-28665.55772644,0.00018997,2]
[376416523,1753972238880,-25000.0,0.00018998,2]
[376416525,1753972238890,-151.0,0.00018998,2]
[376416527,1753972238899,-4473.69670729,0.00018998,2]
[376416529,1753972238909,-151.0,0.00018998,2]
[376416531,1753972238919,-151.0,0.00018998,2]
[376416533,1753972238930,-151.0,0.00018998,2]
[376416535,1753972238939,-2030.296672,0.00018998,2]
[376416536,1753972238949,-151.0,0.00018998,2]
[376416539,1753972238959,-151.0,0.00018998,2]
[376416541,1753972238968,-151.0,0.00018998,2]
[376416543,1753972238978,-151.0,0.00018998,2]
[376416544,1753972238991,-151.0,0.00018998,2]
[376416547,1753972239000,-151.0,0.00018998,2]
[376416549,1753972239010,-151.0,0.00018998,2]
[376416551,1753972239020,-151.0,0.00018998,2]
[376416553,1753972239030,-151.0,0.00018998,2]
[376416555,1753972239040,-151.0,0.00018998,2]
[376416557,1753972239049,-151.0,0.00018998,2]